[Event "FIDE WCCC Open-12 2024"]
[Site "Montesilvano"]
[Date "2024.11.18"]
[Round "3.31"]
[White "Nicot, Valentin"]
[Black "Pham, Le Thao Nguyen"]
[Result "1/2-1/2"]
[ECO "A29"]
[WhiteElo "2078"]
[BlackElo "2384"]
[PlyCount "79"]
[EventDate "2024.11.18"]
[EventType "swiss"]
[EventCountry "ITA"]
[TimeControl "5400+30"]

1. c4 {[%emt 0:00:03]} e5 {[%emt 0:01:04]} 2. g3 {[%emt 0:00:26]} Nf6 {[%emt 0:04:05]} 3. Bg2 {[%emt 0:00:34]} d5 {[%emt 0:00:36]} 4. cxd5 {[%emt 0:01:02]} Nxd5 {[%emt 0:00:11]} 5. Nc3 {[%emt 0:00:43]} Nb6 {[%emt 0:00:57]} 6. Nf3 {[%emt 0:00:50]} Nc6 {[%emt 0:00:11]} 7. O-O {[%emt 0:00:57]} Be7 {[%emt 0:00:12]} 8. Rb1 {[%emt 0:00:49]} a5 {[%emt 0:04:05]} 9. d3 {[%emt 0:01:05]} Be6 {[%emt 0:01:47]} 10. Be3 {[%emt 0:02:59]} Nd5 {[%emt 0:01:15]} 11. Nxd5 {[%emt 0:01:25]} Bxd5 {[%emt 0:00:19]} 12. Qa4 {[%emt 0:02:02]} O-O {[%emt 0:25:42]} 13. Rbc1 {[%emt 0:09:09]} Qb8 {[%emt 0:11:37]} 14. Bc5 {[%emt 0:09:13]} Bd6 {[%emt 0:01:45]} 15. Nd2 {[%emt 0:15:49]} Bxg2 {[%emt 0:31:40]} 16. Kxg2 {[%emt 0:00:09]} Ra6 {[%emt 0:01:04]} 17. Ne4 {[%emt 0:03:10]} f5 {[%emt 0:01:49]} 18. Qb3+ {[%emt 0:02:39]} Kh8 {[%emt 0:00:09]} 19. Ng5 {[%emt 0:01:05]} h6 {[%emt 0:05:39]} 20. Nf3 {[%emt 0:03:38]} a4 {[%emt 0:01:08]} 21. Qc2 {[%emt 0:02:58]} Ra5 {[%emt 0:00:13]} 22. Bxd6 {[%emt 0:01:09]} cxd6 {[%emt 0:00:06]} 23. Qd2 {[%emt 0:00:07]} Qd8 {[%emt 0:01:49]} 24. h4 {[%emt 0:04:28]} Rd5 {[%emt 0:02:30]} 25. Qc2 {[%emt 0:01:21]} Nd4 {[%emt 0:01:41]} 26. Qc4 {[%emt 0:04:33]} Qa5 {[%emt 0:00:44]} 27. Nxd4 {[%emt 0:01:13]} Rxd4 {[%emt 0:00:06]} 28. Qc3 {[%emt 0:00:02]} Qd5+ {[%emt 0:00:58]} 29. Kg1 {[%emt 0:01:34]} f4 {[%emt 0:00:16]} 30. Qc7 {[%emt 0:02:50]} f3 {[%emt 0:00:43]} 31. Qe7 {[%emt 0:00:09]} Rf7 {[%emt 0:00:28]} 32. Qe8+ {[%emt 0:01:13]} Kh7 {[%emt 0:00:27]} 33. e4 {[%emt 0:01:05]} Qxa2 {[%emt 0:00:26]} 34. Rc8 {[%emt 0:00:30]} Kg6 {[%emt 0:00:21]} 35. Rc7 {[%emt 0:10:59]} Kf6 {[%emt 0:00:22]} 36. Qd8+ {[%emt 0:00:29]} Kg6 {[%emt 0:00:04]} 37. Qe8 {[%emt 0:01:46]} Kf6 {[%emt 0:00:06]} 38. Qd8+ {[%emt 0:01:19]} Kg6 {[%emt 0:00:06]} 39. Qe8 {[%emt 0:02:13]} Kf6 {[%emt 0:00:12]} 40. Qd8+ {[%emt 0:01:00]} 1/2-1/2

[Event "FIDE WCCC Open-12 2024"]
[Site "Montesilvano"]
[Date "2024.11.18"]
[Round "3.32"]
[White "Batbaatar, Baatar"]
[Black "Mai, Duc Kien"]
[Result "1-0"]
[ECO "B45"]
[WhiteElo "2030"]
[BlackElo "1771"]
[PlyCount "83"]
[EventDate "2024.11.18"]
[EventType "swiss"]
[EventCountry "ITA"]
[TimeControl "5400+30"]

1. e4 {[%emt 0:00:08]} c5 {[%emt 0:00:16]} 2. Nf3 {[%emt 0:00:07]} e6 {[%emt 0:00:15]} 3. d4 {[%emt 0:00:07]} cxd4 {[%emt 0:00:05]} 4. Nxd4 {[%emt 0:00:04]} Nf6 {[%emt 0:00:05]} 5. Nc3 {[%emt 0:00:06]} Nc6 {[%emt 0:00:06]} 6. Ndb5 {[%emt 0:02:41]} Bb4 {[%emt 0:01:04]} 7. Bf4 {[%emt 0:03:17]} Nxe4 {[%emt 0:03:00]} 8. Qf3 {[%emt 0:01:23]} d5 {[%emt 0:00:14]} 9. Nc7+ {[%emt 0:00:32]} Kf8 {[%emt 0:00:09]} 10. O-O-O {[%emt 0:01:08]} Nxc3 {[%emt 0:05:52]} 11. bxc3 {[%emt 0:02:04]} Ba3+ {[%emt 0:00:12]} 12. Kb1 {[%emt 0:00:28]} Bd6 {[%emt 0:13:53]} 13. Nxa8 {[%emt 0:04:06]} Bxf4 {[%emt 0:00:36]} 14. Qxf4 {[%emt 0:00:05]} e5 {[%emt 0:00:10]} 15. Qf3 {[%emt 0:02:17]} Be6 {[%emt 0:00:08]} 16. Bc4 {[%emt 0:00:51]} Qxa8 {[%emt 0:22:41]} 17. Bxd5 {[%emt 0:00:07]} Qc8 {[%emt 0:00:11]} 18. Bxe6 {[%emt 0:07:04]} Qxe6 {[%emt 0:00:11]} 19. Qd5 {[%emt 0:00:18]} Qxd5 {[%emt 0:08:16]} 20. Rxd5 {[%emt 0:00:10]} Ke7 {[%emt 0:00:04]} 21. Rb5 {[%emt 0:03:49]} b6 {[%emt 0:07:34]} 22. c4 {[%emt 0:01:45]} Rc8 {[%emt 0:00:26]} 23. c3 {[%emt 0:00:53]} Ke6 {[%emt 0:05:07]} 24. Re1 {[%emt 0:01:40]} f6 {[%emt 0:07:27]} 25. Kc2 {[%emt 0:06:16]} Nd8 {[%emt 0:08:46]} 26. c5 {[%emt 0:00:27]} bxc5 {[%emt 0:00:13]} 27. Rd1 {[%emt 0:00:33]} Ke7 {[%emt 0:02:16]} 28. Rd5 {[%emt 0:03:49]} Ne6 {[%emt 0:01:49]} 29. Rb7+ {[%emt 0:03:20]} Rc7 {[%emt 0:00:09]} 30. Rxc7+ {[%emt 0:00:16]} Nxc7 {[%emt 0:00:05]} 31. Rxc5 {[%emt 0:00:05]} Kd6 {[%emt 0:00:05]} 32. Ra5 {[%emt 0:00:44]} a6 {[%emt 0:00:08]} 33. Kb3 {[%emt 0:01:24]} Kc6 {[%emt 0:00:59]} 34. Kc4 {[%emt 0:08:21]} Kb6 {[%emt 0:03:17]} 35. Rd5 {[%emt 0:01:23]} Nxd5 {[%emt 0:03:45]} 36. Kxd5 {[%emt 0:00:06]} a5 {[%emt 0:00:06]} 37. h4 {[%emt 0:01:36]} h5 {[%emt 0:04:06]} 38. a4 {[%emt 0:01:41]} f5 {[%emt 0:01:35]} 39. f3 {[%emt 0:03:32]} g6 {[%emt 0:00:55]} 40. c4 {[%emt 0:01:19]} e4 {[%emt 0:03:22]} 41. fxe4 {[%emt 0:01:58]} fxe4 {[%emt 0:00:03]} 42. c5+ {[%emt 0:00:06]} 1-0

[Event "FIDE WCCC Open-12 2024"]
[Site "Montesilvano"]
[Date "2024.11.18"]
[Round "3.33"]
[White "Tatvidze, Davit"]
[Black "Yusupov, Rauf"]
[Result "1-0"]
[ECO "A36"]
[WhiteElo "2024"]
[BlackElo "1763"]
[PlyCount "46"]
[EventDate "2024.11.18"]
[EventType "swiss"]
[EventCountry "ITA"]
[TimeControl "5400+30"]

1. c4 {[%emt 0:00:04]} c5 {[%emt 0:00:03]} 2. Nc3 {[%emt 0:00:06]} Nc6 {[%emt 0:00:03]} 3. g3 {[%emt 0:00:04]} g6 {[%emt 0:00:05]} 4. Bg2 {[%emt 0:00:21]} Bg7 {[%emt 0:00:04]} 5. d3 {[%emt 0:00:22]} d6 {[%emt 0:00:11]} 6. Qd2 {[%emt 0:00:16]} Nf6 {[%emt 0:00:55]} 7. b3 {[%emt 0:00:29]} e5 {[%emt 0:00:28]} 8. Bb2 {[%emt 0:03:49]} O-O {[%emt 0:01:27]} 9. e3 {[%emt 0:17:38]} Be6 {[%emt 0:04:55]} 10. Nd5 {[%emt 0:05:29]} Bxd5 {[%emt 0:03:15]} 11. cxd5 {[%emt 0:00:06]} Ne7 {[%emt 0:00:02]} 12. e4 {[%emt 0:00:11]} a5 {[%emt 0:02:31]} 13. Ne2 {[%emt 0:08:13]} Nd7 {[%emt 0:01:24]} 14. O-O {[%emt 0:01:34]} f5 {[%emt 0:02:20]} 15. f4 {[%emt 0:00:54]} b6 {[%emt 0:18:30]} 16. fxe5 {[%emt 0:03:35]} Nxe5 {[%emt 0:01:08]} 17. Nf4 {[%emt 0:00:46]} Bh6 {[%emt 0:04:44]} 18. Qe2 {[%emt 0:01:53]} Bxf4 {[%emt 0:05:51]} 19. gxf4 {[%emt 0:03:46]} Nf7 {[%emt 0:05:07]} 20. Qe1 {[%emt 0:10:41]} Nh8 {[%emt 0:13:56]} 21. Qc3 {[%emt 0:00:20]} Kf7 {[%emt 0:00:06]} 22. Qg7+ {[%emt 0:00:22]} Ke8 {[%emt 0:00:01]} 23. Qxh7 {[%emt 0:01:22]} Kd7 {[%emt 0:04:17]} 1-0

[Event "FIDE WCCC Open-12 2024"]
[Site "Montesilvano"]
[Date "2024.11.18"]
[Round "3.34"]
[White "Wang, Zihao(Sh)"]
[Black "Vaidyanathan, Adithya"]
[Result "0-1"]
[ECO "B38"]
[WhiteElo "1838"]
[BlackElo "2018"]
[PlyCount "106"]
[EventDate "2024.11.18"]
[EventType "swiss"]
[EventCountry "ITA"]
[TimeControl "5400+30"]

1. e4 {[%emt 0:00:20]} c5 {[%emt 0:00:04]} 2. Nf3 {[%emt 0:00:03]} Nc6 {[%emt 0:00:01]} 3. d4 {[%emt 0:00:06]} cxd4 {[%emt 0:00:12]} 4. Nxd4 {[%emt 0:00:02]} g6 {[%emt 0:00:01]} 5. c4 {[%emt 0:00:06]} Bg7 {[%emt 0:00:02]} 6. Be3 {[%emt 0:00:04]} Nf6 {[%emt 0:00:03]} 7. Nc3 {[%emt 0:00:03]} O-O {[%emt 0:00:04]} 8. Be2 {[%emt 0:00:16]} d6 {[%emt 0:00:08]} 9. O-O {[%emt 0:00:04]} Bd7 {[%emt 0:00:02]} 10. Nc2 {[%emt 0:00:51]} Qa5 {[%emt 0:02:13]} 11. Rc1 {[%emt 0:02:48]} Rfc8 {[%emt 0:00:47]} 12. f3 {[%emt 0:01:25]} Ne5 {[%emt 0:01:40]} 13. Na3 {[%emt 0:02:10]} a6 {[%emt 0:20:21]} 14. Qb3 {[%emt 0:06:48]} b5 {[%emt 0:03:00]} 15. cxb5 {[%emt 0:02:39]} axb5 {[%emt 0:00:16]} 16. Naxb5 {[%emt 0:00:15]} Be6 {[%emt 0:03:51]} 17. Nd5 {[%emt 0:05:12]} Rxc1 {[%emt 0:05:55]} 18. Rxc1 {[%emt 0:08:02]} Bxd5 {[%emt 0:01:24]} 19. exd5 {[%emt 0:00:06]} Qxa2 {[%emt 0:00:28]} 20. Qxa2 {[%emt 0:03:09]} Rxa2 {[%emt 0:00:31]} 21. Rc8+ {[%emt 0:00:01]} Bf8 {[%emt 0:00:11]} 22. Bh6 {[%emt 0:00:20]} Ned7 {[%emt 0:00:19]} 23. Nc3 {[%emt 0:01:05]} Rxb2 {[%emt 0:01:20]} 24. Bb5 {[%emt 0:06:26]} Rc2 {[%emt 0:03:32]} 25. Be3 {[%emt 0:04:40]} Kg7 {[%emt 0:11:04]} 26. Bd4 {[%emt 0:03:45]} Rd2 {[%emt 0:04:25]} 27. Ne2 {[%emt 0:03:28]} Ne5 {[%emt 0:01:19]} 28. Kf2 {[%emt 0:09:17]} g5 {[%emt 0:05:49]} 29. Bc4 {[%emt 0:09:57]} Nxc4 {[%emt 0:04:31]} 30. Rxc4 {[%emt 0:00:19]} Kg6 {[%emt 0:00:10]} 31. Ke3 {[%emt 0:02:08]} Ra2 {[%emt 0:00:23]} 32. Bxf6 {[%emt 0:02:01]} Kxf6 {[%emt 0:01:51]} 33. g4 {[%emt 0:01:49]} Bg7 {[%emt 0:05:41]} 34. Ng3 {[%emt 0:03:43]} Rxh2 {[%emt 0:05:55]} 35. Nh5+ {[%emt 0:01:38]} Kg6 {[%emt 0:00:20]} 36. Rc8 {[%emt 0:00:41]} Rxh5 {[%emt 0:01:18]} 37. gxh5+ {[%emt 0:00:04]} Kxh5 {[%emt 0:00:04]} 38. Re8 {[%emt 0:01:30]} Bf6 {[%emt 0:01:45]} 39. Rg8 {[%emt 0:02:33]} Kh4 {[%emt 0:04:12]} 40. Kf2 {[%emt 0:00:36]} Kh3 {[%emt 0:01:19]} 41. Rf8 {[%emt 0:03:21]} h5 {[%emt 0:01:45]} 42. Rxf7 {[%emt 0:01:11]} h4 {[%emt 0:00:18]} 43. Rh7 {[%emt 0:05:01]} Bd4+ {[%emt 0:01:23]} 44. Kf1 {[%emt 0:00:05]} Kg3 {[%emt 0:00:24]} 45. Rxe7 {[%emt 0:00:48]} h3 {[%emt 0:00:17]} 46. Rh7 {[%emt 0:01:23]} h2 {[%emt 0:00:03]} 47. Rh5 {[%emt 0:07:43]} Be3 {[%emt 0:01:16]} 48. Rh7 {[%emt 0:00:22]} Bf4 {[%emt 0:00:10]} 49. Rh5 {[%emt 0:00:42]} Kxf3 {[%emt 0:00:06]} 50. Rh3+ {[%emt 0:00:53]} Bg3 {[%emt 0:00:04]} 51. Rh6 {[%emt 0:02:37]} Bh4 {[%emt 0:00:58]} 52. Rf6+ {[%emt 0:00:44]} Kg3 {[%emt 0:00:12]} 53. Rf3+ {[%emt 0:00:07]} Kg4 {[%emt 0:00:08]} 0-1

[Event "FIDE WCCC Open-12 2024"]
[Site "Montesilvano"]
[Date "2024.11.18"]
[Round "3.35"]
[White "Elhusseiny, Eyad"]
[Black "Wang, Luis"]
[Result "1-0"]
[ECO "D79"]
[WhiteElo "2017"]
[BlackElo "1751"]
[PlyCount "65"]
[EventDate "2024.11.18"]
[EventType "swiss"]
[EventCountry "ITA"]
[TimeControl "5400+30"]

1. Nf3 {[%emt 0:00:03]} Nf6 {[%emt 0:00:07]} 2. c4 {[%emt 0:00:05]} g6 {[%emt 0:00:09]} 3. d4 {[%emt 0:00:13]} c6 {[%emt 0:00:07]} 4. g3 {[%emt 0:00:41]} d5 {[%emt 0:00:33]} 5. cxd5 {[%emt 0:00:25]} cxd5 {[%emt 0:00:20]} 6. Bg2 {[%emt 0:00:20]} Bg7 {[%emt 0:00:37]} 7. O-O {[%emt 0:00:36]} O-O {[%emt 0:00:16]} 8. Nc3 {[%emt 0:02:30]} Bf5 {[%emt 0:01:29]} 9. Qb3 {[%emt 0:03:18]} b6 {[%emt 0:05:57]} 10. Ne5 {[%emt 0:02:46]} e6 {[%emt 0:00:53]} 11. h3 {[%emt 0:02:37]} h5 {[%emt 0:02:55]} 12. Bg5 {[%emt 0:18:48]} Nbd7 {[%emt 0:01:27]} 13. f3 {[%emt 0:08:36]} Qc7 {[%emt 0:05:34]} 14. Bf4 {[%emt 0:07:41]} g5 {[%emt 0:18:18]} 15. Nb5 {[%emt 0:08:11]} Qb7 {[%emt 0:12:33]} 16. Bxg5 {[%emt 0:01:31]} Nxe5 {[%emt 0:01:36]} 17. dxe5 {[%emt 0:00:10]} Nh7 {[%emt 0:00:25]} 18. Bf4 {[%emt 0:00:15]} Bg6 {[%emt 0:04:38]} 19. Rac1 {[%emt 0:00:15]} Qa6 {[%emt 0:00:56]} 20. Nc7 {[%emt 0:00:32]} Qxe2 {[%emt 0:03:33]} 21. Rfe1 {[%emt 0:00:44]} Qd3 {[%emt 0:01:16]} 22. Qxd3 {[%emt 0:00:47]} Bxd3 {[%emt 0:00:05]} 23. Nxa8 {[%emt 0:00:06]} Rxa8 {[%emt 0:00:08]} 24. Bf1 {[%emt 0:00:26]} Bf5 {[%emt 0:00:27]} 25. g4 {[%emt 0:00:52]} hxg4 {[%emt 0:00:12]} 26. hxg4 {[%emt 0:00:51]} Bg6 {[%emt 0:00:09]} 27. Rc7 {[%emt 0:00:38]} Nf8 {[%emt 0:03:01]} 28. Rec1 {[%emt 0:01:13]} Kh7 {[%emt 0:01:37]} 29. Bg3 {[%emt 0:02:51]} d4 {[%emt 0:01:15]} 30. Rd1 {[%emt 0:01:16]} Rd8 {[%emt 0:00:21]} 31. Bd3 {[%emt 0:01:16]} Bxd3 {[%emt 0:00:46]} 32. Rxd3 {[%emt 0:00:06]} Nd7 {[%emt 0:00:11]} 33. Rxd4 {[%emt 0:00:27]} 1-0

[Event "FIDE WCCC Open-12 2024"]
[Site "Montesilvano"]
[Date "2024.11.18"]
[Round "3.36"]
[White "Vorobyov, Radmir"]
[Black "Wang, William Kaiyuan"]
[Result "1-0"]
[ECO "C54"]
[WhiteElo "2017"]
[BlackElo "1715"]
[PlyCount "86"]
[EventDate "2024.11.18"]
[EventType "swiss"]
[EventCountry "ITA"]
[TimeControl "5400+30"]

1. e4 {[%emt 1:31:00]} e5 {[%emt 0:00:04]} 2. Nf3 {[%emt 0:00:00]} Nc6 {[%emt 0:00:04]} 3. Bc4 {[%emt 0:00:00]} Nf6 {[%emt 0:00:08]} 4. d3 {[%emt 0:00:00]} Bc5 {[%emt 0:00:05]} 5. O-O {[%emt 0:00:00]} d6 {[%emt 0:00:02]} 6. c3 {[%emt 0:00:00]} a6 {[%emt 0:00:08]} 7. h3 {[%emt 0:00:00]} h6 {[%emt 0:00:07]} 8. Re1 {[%emt 0:00:00]} g5 {[%emt 0:00:55]} 9. d4 {[%emt 0:00:00]} Ba7 {[%emt 0:00:36]} 10. dxe5 {[%emt 0:00:00]} Nxe5 {[%emt 0:00:08]} 11. Nxe5 {[%emt 0:00:00]} dxe5 {[%emt 0:00:03]} 12. Qxd8+ {[%emt 0:00:00]} Kxd8 {[%emt 0:00:05]} 13. Bxf7 {[%emt 0:00:00]} Rf8 {[%emt 0:00:04]} 14. Bb3 {[%emt 0:00:00]} Nh5 {[%emt 0:07:44]} 15. Be3 {[%emt 0:00:00]} Bxe3 {[%emt 0:09:07]} 16. Rxe3 {[%emt 0:00:00]} Ke7 {[%emt 0:00:17]} 17. Nd2 {[%emt 0:00:00]} Be6 {[%emt 0:04:32]} 18. Nc4 {[%emt 0:00:00]} Bxc4 {[%emt 0:04:21]} 19. Bxc4 {[%emt 0:00:00]} Rad8 {[%emt 0:00:30]} 20. Rd3 {[%emt 0:00:00]} Rxd3 {[%emt 0:06:30]} 21. Bxd3 {[%emt 0:00:00]} Rd8 {[%emt 0:00:04]} 22. Rd1 {[%emt 0:00:00]} Nf4 {[%emt 0:00:15]} 23. Bc2 {[%emt 0:00:00]} Rxd1+ {[%emt 0:00:24]} 24. Bxd1 {[%emt 0:00:00]} Nd3 {[%emt 0:00:04]} 25. b3 {[%emt 0:00:00]} b5 {[%emt 0:03:49]} 26. Kf1 {[%emt 0:00:00]} Nc1 {[%emt 0:02:01]} 27. a4 {[%emt 0:00:00]} bxa4 {[%emt 0:00:28]} 28. bxa4 {[%emt 0:00:00]} Na2 {[%emt 0:00:05]} 29. c4 {[%emt 0:00:00]} Nc3 {[%emt 0:00:06]} 30. Bc2 {[%emt 0:00:00]} Kd6 {[%emt 0:00:11]} 31. Ke1 {[%emt 0:02:23]} Kc5 {[%emt 0:00:08]} 32. Kd2 {[%emt 0:00:07]} Kxc4 {[%emt 0:00:31]} 33. Ke3 {[%emt 0:00:05]} Kb4 {[%emt 0:00:27]} 34. g3 {[%emt 0:00:14]} Nxa4 {[%emt 0:00:09]} 35. Bxa4 {[%emt 0:00:55]} Kxa4 {[%emt 0:00:05]} 36. f4 {[%emt 0:00:06]} gxf4+ {[%emt 0:26:23]} 37. gxf4 {[%emt 0:00:27]} exf4+ {[%emt 0:00:40]} 38. Kxf4 {[%emt 0:01:37]} Kb4 {[%emt 0:00:14]} 39. e5 {[%emt 0:00:35]} Kc5 {[%emt 0:00:04]} 40. Kf5 {[%emt 0:00:10]} a5 {[%emt 0:00:49]} 41. e6 {[%emt 0:00:15]} Kd6 {[%emt 0:00:45]} 42. Kf6 {[%emt 0:00:05]} a4 {[%emt 0:00:10]} 43. e7 {[%emt 0:00:05]} Kd5 {[%emt 0:38:38]} 1-0

[Event "FIDE WCCC Open-12 2024"]
[Site "Montesilvano"]
[Date "2024.11.18"]
[Round "3.37"]
[White "Lee, Daniel Joshua"]
[Black "Bocquenet-Drouode, Hugo"]
[Result "0-1"]
[ECO "B63"]
[WhiteElo "1765"]
[BlackElo "2002"]
[PlyCount "88"]
[EventDate "2024.11.18"]
[EventType "swiss"]
[EventCountry "ITA"]
[TimeControl "5400+30"]

1. e4 {[%emt 0:00:02]} c5 {[%emt 0:00:05]} 2. Nf3 {[%emt 0:00:03]} Nc6 {[%emt 0:00:04]} 3. d4 {[%emt 0:00:05]} cxd4 {[%emt 0:00:03]} 4. Nxd4 {[%emt 0:00:05]} Nf6 {[%emt 0:00:04]} 5. Nc3 {[%emt 0:00:07]} d6 {[%emt 0:00:07]} 6. Bg5 {[%emt 0:00:05]} e6 {[%emt 0:00:06]} 7. Qd2 {[%emt 0:00:12]} Qb6 {[%emt 0:00:07]} 8. O-O-O {[%emt 0:07:50]} Qxd4 {[%emt 0:00:50]} 9. Qxd4 {[%emt 0:00:14]} Nxd4 {[%emt 0:00:04]} 10. Rxd4 {[%emt 0:00:08]} a6 {[%emt 0:00:07]} 11. Be2 {[%emt 0:12:09]} Bd7 {[%emt 0:00:42]} 12. Rhd1 {[%emt 0:10:27]} Bc6 {[%emt 0:09:50]} 13. Bf3 {[%emt 0:26:43]} Be7 {[%emt 0:01:48]} 14. Bh4 {[%emt 0:01:02]} O-O-O {[%emt 0:01:54]} 15. Bg3 {[%emt 0:01:03]} e5 {[%emt 0:00:18]} 16. Rc4 {[%emt 0:05:08]} Kb8 {[%emt 0:04:55]} 17. Bh4 {[%emt 0:04:43]} h6 {[%emt 0:03:52]} 18. Nd5 {[%emt 0:10:46]} Bxd5 {[%emt 0:00:28]} 19. exd5 {[%emt 0:00:08]} g5 {[%emt 0:00:13]} 20. Bg3 {[%emt 0:00:21]} h5 {[%emt 0:00:35]} 21. h4 {[%emt 0:01:55]} g4 {[%emt 0:00:29]} 22. Be2 {[%emt 0:03:08]} Nd7 {[%emt 0:02:10]} 23. Rd3 {[%emt 0:03:00]} f5 {[%emt 0:06:47]} 24. f4 {[%emt 0:07:46]} e4 {[%emt 0:04:49]} 25. Rb3 {[%emt 0:01:21]} Rc8 {[%emt 0:00:46]} 26. Bf2 {[%emt 0:02:08]} Rxc4 {[%emt 0:01:09]} 27. Bxc4 {[%emt 0:00:03]} Ka8 {[%emt 0:00:16]} 28. Bd4 {[%emt 0:01:47]} Rc8 {[%emt 0:00:46]} 29. Rc3 {[%emt 0:00:22]} Bxh4 {[%emt 0:00:32]} 30. g3 {[%emt 0:01:04]} Bxg3 {[%emt 0:00:39]} 31. Rxg3 {[%emt 0:00:41]} Rxc4 {[%emt 0:00:07]} 32. c3 {[%emt 0:00:16]} h4 {[%emt 0:00:07]} 33. Rg1 {[%emt 0:00:14]} Rc8 {[%emt 0:00:36]} 34. Kd2 {[%emt 0:00:22]} Nf8 {[%emt 0:00:56]} 35. Ke3 {[%emt 0:00:54]} Ng6 {[%emt 0:00:17]} 36. Rh1 {[%emt 0:00:39]} Rc7 {[%emt 0:01:36]} 37. b4 {[%emt 0:01:10]} b5 {[%emt 0:00:17]} 38. a4 {[%emt 0:00:41]} bxa4 {[%emt 0:00:21]} 39. Ra1 {[%emt 0:00:35]} Ne7 {[%emt 0:00:19]} 40. Rxa4 {[%emt 0:00:19]} Nxd5+ {[%emt 0:00:04]} 41. Kf2 {[%emt 0:00:17]} g3+ {[%emt 0:00:13]} 42. Kg1 {[%emt 0:00:36]} Kb7 {[%emt 0:00:05]} 43. Kh1 {[%emt 0:00:37]} h3 {[%emt 0:00:37]} 44. Kg1 {[%emt 0:00:22]} Nxc3 {[%emt 0:00:10]} 0-1

[Event "FIDE WCCC Open-12 2024"]
[Site "Montesilvano"]
[Date "2024.11.18"]
[Round "3.38"]
[White "Nguyen, Anh Khoi"]
[Black "Miransh Vyas"]
[Result "0-1"]
[ECO "E04"]
[WhiteElo "2520"]
[BlackElo "1705"]
[PlyCount "80"]
[EventDate "2024.11.18"]
[EventType "swiss"]
[EventCountry "ITA"]
[TimeControl "5400+30"]

1. d4 {[%emt 0:00:02]} Nf6 {[%emt 0:00:45]} 2. c4 {[%emt 0:00:13]} e6 {[%emt 0:00:06]} 3. g3 {[%emt 0:00:06]} d5 {[%emt 0:00:10]} 4. Bg2 {[%emt 0:00:09]} Bb4+ {[%emt 0:00:51]} 5. Nd2 {[%emt 0:01:17]} O-O {[%emt 0:00:43]} 6. Ngf3 {[%emt 0:00:06]} dxc4 {[%emt 0:02:49]} 7. Qc2 {[%emt 0:02:00]} a5 {[%emt 0:02:38]} 8. Qxc4 {[%emt 0:05:55]} b6 {[%emt 0:02:50]} 9. a3 {[%emt 0:00:23]} Ba6 {[%emt 0:03:35]} 10. Qc2 {[%emt 0:00:16]} Be7 {[%emt 0:00:55]} 11. Nc4 {[%emt 0:07:18]} Bb7 {[%emt 0:16:37]} 12. O-O {[%emt 0:02:30]} Be4 {[%emt 0:14:24]} 13. Qd1 {[%emt 0:17:15]} Nbd7 {[%emt 0:19:14]} 14. b3 {[%emt 0:02:33]} Qc8 {[%emt 0:09:23]} 15. Bb2 {[%emt 0:04:03]} Rd8 {[%emt 0:03:31]} 16. Ncd2 {[%emt 0:00:47]} Bb7 {[%emt 0:01:26]} 17. Rc1 {[%emt 0:00:52]} Qb8 {[%emt 0:01:37]} 18. Rc2 {[%emt 0:11:49]} c5 {[%emt 0:05:09]} 19. Qa1 {[%emt 0:00:07]} a4 {[%emt 0:03:02]} 20. dxc5 {[%emt 0:18:17]} bxc5 {[%emt 0:01:44]} 21. bxa4 {[%emt 0:02:13]} Rxa4 {[%emt 0:00:40]} 22. Nc4 {[%emt 0:05:19]} Be4 {[%emt 0:01:16]} 23. Rcc1 {[%emt 0:00:17]} Qb5 {[%emt 0:01:28]} 24. Nfd2 {[%emt 0:04:05]} Bxg2 {[%emt 0:00:20]} 25. Kxg2 {[%emt 0:00:01]} Rda8 {[%emt 0:00:59]} 26. Rfd1 {[%emt 0:00:35]} Nb6 {[%emt 0:00:56]} 27. Nxb6 {[%emt 0:02:27]} Qxb6 {[%emt 0:00:09]} 28. Nc4 {[%emt 0:00:22]} Qb5 {[%emt 0:00:48]} 29. Qa2 {[%emt 0:00:14]} R8a6 {[%emt 0:00:47]} 30. Be5 {[%emt 0:04:42]} h5 {[%emt 0:02:34]} 31. Qb2 {[%emt 0:01:56]} Qc6+ {[%emt 0:01:38]} 32. f3 {[%emt 0:00:44]} Ra7 {[%emt 0:01:37]} 33. Rb1 {[%emt 0:02:08]} Kh7 {[%emt 0:00:47]} 34. Qc2+ {[%emt 0:01:41]} g6 {[%emt 0:00:45]} 35. Rb6 {[%emt 0:01:25]} Rxc4 {[%emt 0:00:30]} 36. Qb2 {[%emt 0:00:27]} Qa4 {[%emt 0:00:24]} 37. Bxf6 {[%emt 0:01:09]} Bxf6 {[%emt 0:00:37]} 38. Qxf6 {[%emt 0:00:56]} Qxd1 {[%emt 0:00:15]} 39. Rb8 {[%emt 0:00:28]} Qxe2+ {[%emt 0:00:16]} 40. Kh3 {[%emt 0:00:09]} Qf1# {[%emt 0:00:37]} 0-1